bitfinex/quotes_ETHUSD_20260306
["timestamp","ask_amount","ask_price","bid_price","bid_amount"]
[1772813607644,1.26870165,1970.6,1969.4,1.2035469]
[1772813607834,1.23269148,1970.5,1969.4,1.2035469]
[1772813608520,1.23269148,1970.8,1969.4,1.2035469]
[1772813608724,1.23269148,1970.8,1969.6,1.2035469]
[1772813609125,0.001,1970.9,1969.6,1.2035469]
[1772813609927,0.001,1970.9,1969.5,1.2693577]
[1772813609928,1.23269148,1971.4,1970.1,1.2035469]
[1772813610283,0.001,1970.3,1970.1,1.2035469]
[1772813610436,2.50082737,1971.4,1970.1,1.2035469]
[1772813610757,1.23269148,1971.1,1970.1,5.07562683]
[1772813612918,1.13281174,1970.9,1969.9,5.07595973]
[1772813613331,1.13281174,1970.9,1969.9,6.22317417]
[1772813613723,1.13281174,1970.9,1970.0,1.14721444]
[1772813614431,2.21081174,1971.2,1970.0,1.14721444]
[1772813614935,2.40107526,1971.2,1970.2,1.14721444]
[1772813615549,2.40111704,1971.2,1970.2,1.14721444]
[1772813616970,1.13281174,1971.2,1970.3,1.2688423]
[1772813617140,8.04579387,1971.5,1970.4,1.14721444]
[1772813617141,5.37439436,1971.5,1970.4,1.14721444]
[1772813617338,4.1063166,1971.5,1970.4,1.14721444]
[1772813617838,1.13281174,1971.8,1970.4,1.14721444]
[1772813618225,1.13281174,1971.7,1970.4,1.14721444]
[1772813618432,1.13281174,1971.7,1970.5,1.14721444]
[1772813618654,6.20432,1971.9,1970.5,1.14721444]
[1772813618859,1.13281174,1971.8,1970.5,1.14721444]
[1772813619060,1.13281174,1971.6,1970.6,1.26864914]
[1772813621059,2.40094606,1971.4,1970.5,5.07459656]
[1772813621435,1.13281174,1971.4,1970.5,6.221811]
[1772813622262,1.13381174,1971.4,1970.3,6.22246066]
[1772813622965,1.13381174,1971.4,1970.4,1.14721444]
[1772813623259,2.40101039,1971.3,1970.5,1.26871352]
[1772813623459,1.13281174,1971.2,1970.2,1.26887053]
[1772813624547,2.24181174,1971.2,1970.3,1.14721444]
[1772813625445,1.13281174,1971.2,1970.3,1.14721444]
[1772813625680,0.001,1971.4,1970.5,1.14721444]
[1772813626162,3.93361086,1971.9,1970.5,1.14721444]
[1772813626533,1.267856,1971.9,1970.5,1.14721444]
[1772813626831,2.40066774,1971.9,1970.5,1.14721444]
[1772813627344,1.13281174,1971.8,1970.5,1.14721444]
[1772813627664,2.40075311,1971.7,1970.6,2.41586358]
[1772813627870,2.40075311,1971.7,1970.7,1.14721444]
[1772813628938,1.13281174,1971.6,1970.6,1.26864914]
[1772813629169,1.13281174,1971.6,1970.5,1.26867913]
[1772813629358,1.13281174,1971.6,1970.4,2.41596194]
[1772813629559,1.13281174,1971.4,1970.4,2.41596194]
[1772813629869,1.116,1971.3,1970.4,2.41596194]
[1772813630042,1.13281174,1971.2,1970.3,1.2688423]
[1772813631668,1.26832732,1971.1,1970.1,4.9280493]
[1772813631853,1.13281174,1971.0,1970.1,2.41723339]
[1772813633269,1.26832732,1971.1,1970.2,1.14721444]
[1772813633470,2.40105353,1971.3,1970.2,1.14721444]
[1772813633647,2.40101268,1971.3,1970.2,1.14721444]
[1772813633854,2.40101268,1971.3,1970.4,1.14721444]
[1772813634346,1.13281174,1971.2,1970.2,1.26886514]
[1772813634749,1.13281174,1971.2,1970.2,2.41607958]
[1772813635675,1.13281174,1971.2,1970.3,1.14750236]
[1772813635862,1.26832732,1971.1,1970.4,1.26877791]
[1772813636171,1.09339346,1971.0,1970.2,1.2699539]
[1772813637050,1.09339346,1971.0,1970.2,1.27000601]
[1772813637945,1.26845603,1970.9,1970.2,0.0011]
[1772813640056,2.36184949,1970.9,1970.2,0.0011]
[1772813640972,1.09339346,1970.8,1970.2,0.0011]
[1772813641142,1.26845603,1970.9,1970.2,0.0011]
[1772813641344,1.26845603,1970.9,1970.2,1.14860236]
[1772813642162,2.42212431,1971.0,1970.3,1.2688423]
[1772813642365,1.15367719,1970.9,1970.2,0.0011]
[1772813642872,1.15367719,1970.9,1970.2,1.2700051]
[1772813643282,1.15367719,1970.9,1970.2,1.27000508]
[1772813643450,2.27767719,1970.9,1970.2,1.27000508]
[1772813643652,1.15367719,1970.8,1970.2,0.0011]
[1772813644174,1.26858476,1970.7,1970.2,0.0011]
[1772813645984,2.27767719,1970.6,1970.0,1.39097638]
[1772813646152,1.15367719,1970.6,1970.0,1.39097638]
[1772813646346,1.26852039,1970.8,1970.1,1.09412139]
[1772813646746,1.26852039,1970.8,1970.0,0.12194741]
[1772813646747,1.15367719,1970.7,1970.0,0.12194741]
[1772813646974,1.15367719,1970.7,1970.0,1.39098192]
[1772813647153,2.27867719,1970.7,1970.0,1.39098192]
[1772813647355,1.15367719,1971.2,1970.1,1.09412139]
[1772813647549,2.27867719,1971.1,1970.1,1.09412139]
[1772813648159,1.26845603,1970.9,1970.0,0.12194741]
[1772813648468,1.15367719,1970.8,1970.0,1.39096966]
[1772813648869,1.15367719,1970.8,1970.0,2.48509105]
[1772813649092,1.15367719,1970.8,1970.2,0.0011]
[1772813650462,1.26858476,1970.7,1970.2,0.0011]
[1772813652084,2.42226195,1970.7,1970.2,0.0011]
[1772813654178,5.0739472,1970.9,1970.2,1.09522139]
[1772813654385,2.42211422,1971.0,1970.2,1.09522139]
[1772813654583,1.127,1970.9,1970.2,1.09522139]
[1772813655002,2.42219758,1970.8,1970.2,0.0011]
[1772813655172,2.42219758,1970.8,1970.2,1.27000424]
[1772813656383,2.42219758,1970.8,1970.2,0.0011]
[1772813657778,1.15367719,1970.7,1970.2,0.0011]
[1772813658397,1.26852039,1970.8,1970.2,0.0011]
[1772813658902,1.128,1970.7,1970.2,0.0011]
[1772813659279,6.20237891,1970.7,1970.2,0.0011]
[1772813659983,7.3560561,1970.7,1970.2,0.0011]
[1772813660330,1.15367719,1970.6,1970.0,0.12194741]
[1772813661296,1.15367719,1970.6,1970.3,0.0011]
[1772813661587,1.15367719,1970.4,1970.2,0.0011]
[1772813661893,1.129,1970.3,1970.2,0.0011]
[1772813662480,1.24,1970.5,1970.2,0.0011]
[1772813662676,1.13,1970.4,1970.2,0.0011]
[1772813663288,1.24,1970.5,1970.2,0.0011]
[1772813663516,1.26861213,1970.7,1970.2,2.36412809]
[1772813663717,1.26861213,1970.7,1970.2,0.0011]
[1772813664212,2.3985645,1970.8,1970.2,0.0011]
[1772813664410,2.3985645,1970.8,1970.2,1.09522139]
[1772813665484,2.3985645,1970.8,1970.2,0.0011]
[1772813665485,3.55224169,1970.8,1970.2,0.0011]
[1772813666312,1.15367719,1970.7,1970.0,0.12194741]
[1772813667740,1.15367719,1970.5,1970.0,0.12194741]
[1772813667932,1.132,1970.4,1970.0,0.12194741]
[1772813668230,1.132,1970.4,1969.9,0.0011]
[1772813668408,1.132,1970.3,1969.9,1.27019034]
[1772813668614,1.132,1970.3,1969.9,0.0011]
[1772813669938,2.4009052,1970.3,1969.9,0.0011]
[1772813670117,1.2689052,1970.3,1969.9,0.0011]
[1772813670344,2.4009052,1970.3,1969.9,0.0011]
[1772813670533,2.4019052,1970.3,1969.9,0.0011]
[1772813671324,1.2689052,1970.3,1969.9,0.0011]
[1772813671519,2.40184331,1970.3,1969.9,0.0011]
[1772813672043,1.26877791,1970.4,1969.9,0.0011]
[1772813672207,2.40177791,1970.4,1969.9,0.0011]
[1772813672639,2.30794406,1970.7,1969.9,1.03984875]
[1772813672814,1.133,1970.6,1969.9,1.03984875]
[1772813673334,1.134,1970.6,1969.9,1.03984875]
[1772813673534,5.07422014,1970.8,1970.0,0.0011]
[1772813673743,1.134,1970.7,1970.0,1.03984875]
[1772813673908,0.001,1970.6,1970.0,1.03984875]
[1772813674235,1.26964914,1970.6,1970.1,1.26897111]
[1772813674448,1.135,1970.6,1970.1,2.30771986]
[1772813674613,0.001,1970.6,1970.1,2.30771986]
[1772813675333,0.001,1970.6,1970.1,1.03874875]
[1772813675533,0.001,1970.6,1970.0,1.27012966]
[1772813676035,1.134,1970.5,1970.0,1.27012966]
[1772813676742,0.001,1970.6,1970.0,1.27012966]
[1772813677512,1.04035231,1970.6,1970.0,0.0011]
[1772813679009,1.26871352,1970.5,1970.0,0.0011]
[1772813679615,2.30905031,1970.6,1970.0,0.0011]
[1772813679819,2.30905031,1970.6,1970.0,1.03984875]
[1772813680916,2.30905031,1970.6,1970.0,2.30888125]
[1772813681456,2.30905031,1970.6,1970.0,0.0011]
[1772813681457,1.03935231,1970.5,1970.0,0.0011]
[1772813682249,1.136,1970.4,1970.0,0.0011]
[1772813682550,1.269698,1970.6,1970.0,2.30887017]
[1772813682763,1.136,1970.5,1970.0,2.30887017]
[1772813683216,1.03935231,1970.4,1970.0,0.0011]
[1772813683752,1.136,1970.5,1970.0,0.0011]
[1772813684059,1.269698,1970.6,1970.0,1.27011446]
[1772813684265,0.001,1970.6,1970.1,1.03874875]
[1772813685140,0.001,1970.6,1970.1,2.30767486]
[1772813685533,0.001,1970.6,1970.2,1.03874875]
[1772813686828,0.001,1970.5,1970.2,1.03874875]
[1772813687145,0.001,1970.5,1970.3,1.2688423]
[1772813687345,0.001,1970.5,1970.3,1.03874875]
[1772813688449,1.03935231,1971.2,1970.4,1.03874875]
[1772813688752,1.03935231,1971.2,1970.2,2.30760556]
[1772813688929,1.03935231,1971.0,1970.2,2.30760556]
[1772813689114,1.03935231,1971.0,1970.3,1.03874875]
[1772813689317,1.26845603,1970.9,1970.4,1.26877791]
[1772813689516,1.26845603,1970.9,1970.4,1.03874875]
[1772813690545,1.03935231,1970.8,1970.1,0.0011]
[1772813690757,1.03935231,1970.5,1969.3,0.0011]
[1772813690952,1.03935231,1970.5,1969.3,2.30933262]
[1772813690953,1.03935231,1970.3,1969.3,2.30933262]
[1772813691121,1.03935231,1970.3,1969.3,2.30932638]
[1772813691647,1.03935231,1970.1,1969.3,2.30932638]
[1772813692552,1.138,1970.0,1969.4,1.03874875]
[1772813692931,1.26887694,1970.3,1969.4,1.03874875]
[1772813693132,2.50874555,1970.5,1969.6,1.03874875]
[1772813693534,1.24,1970.5,1969.8,1.03874875]
[1772813693732,1.26874596,1970.5,1969.8,1.03874875]
[1772813693966,1.03935231,1970.5,1969.7,1.26922881]
[1772813695157,1.03935231,1970.5,1969.5,2.30810595]
[1772813695366,1.03935231,1970.5,1969.5,2.30809548]
[1772813695661,1.03935231,1970.5,1969.3,0.0011]
[1772813695662,1.05054463,1970.3,1969.3,0.0011]
[1772813695848,2.18854463,1970.2,1969.3,0.0011]
[1772813696364,1.05054463,1970.1,1969.3,0.0011]
[1772813697221,1.05054463,1970.1,1969.3,1.04680231]
[1772813697423,1.139,1970.2,1969.3,1.04680231]
[1772813697660,1.05054463,1970.1,1969.3,1.27054156]
[1772813697846,1.05054463,1970.1,1969.3,1.27055359]
[1772813698756,1.05054463,1970.1,1969.3,2.3162559]
[1772813698957,1.05054463,1970.1,1969.3,2.3162798]
[1772813699757,1.26903553,1970.0,1969.3,2.3162798]
[1772813700258,1.26903553,1970.0,1969.3,2.31626934]
[1772813700670,1.26903553,1970.0,1969.3,1.04680231]
[1772813700975,1.05054463,1969.9,1969.4,0.0011]
[1772813701486,2.40802284,1970.1,1969.4,1.04680231]
[1772813701652,2.40802284,1970.1,1969.4,0.0011]
[1772813701653,3.4586125,1970.1,1969.4,0.0011]
[1772813701968,1.05058966,1970.0,1969.4,0.0011]
[1772813702960,2.40802284,1970.1,1969.4,0.98537801]
[1772813703161,1.05058966,1970.3,1969.4,0.98537801]
[1772813703361,0.001,1970.9,1969.4,0.98537801]
[1772813703362,1.139,1970.5,1969.4,0.98537801]
[1772813703566,2.18958966,1970.5,1969.4,0.98537801]
[1772813704073,1.26877791,1970.4,1969.6,0.98427801]
[1772813704444,1.05058966,1970.6,1969.6,0.98427801]
[1772813704645,2.32008534,1970.9,1969.6,0.98427801]
[1772813705944,1.26949568,1970.9,1969.6,0.98427801]
[1772813706146,0.001,1970.9,1969.8,0.98427801]
[1772813706373,0.001,1970.9,1969.9,0.98427801]
[1772813706881,1.05158966,1970.9,1969.9,0.98427801]
[1772813707176,1.05158966,1970.9,1969.7,0.98427801]
[1772813707474,1.131,1970.9,1969.7,0.98427801]
[1772813707971,2.18158966,1970.9,1969.7,0.98427801]
[1772813708379,2.18158966,1970.9,1969.9,0.98427801]
[1772813708380,0.001,1970.9,1969.9,0.98427801]
[1772813708682,1.26945607,1970.9,1969.9,0.98427801]
[1772813709279,0.001,1970.9,1969.9,0.98427801]
[1772813709485,1.26946301,1970.9,1969.9,0.98427801]
[1772813710446,1.26946301,1970.9,1970.0,1.26903553]
[1772813710678,1.26946301,1970.9,1970.0,2.25331354]
[1772813711080,1.26946301,1970.9,1970.0,0.98427801]
[1772813711384,0.001,1970.9,1970.2,0.98427801]
[1772813712582,0.001,1970.9,1970.3,1.2688423]
[1772813712973,0.001,1970.9,1970.2,2.25318211]
[1772813713158,0.001,1970.9,1970.3,0.98427801]
[1772813713365,0.001,1970.8,1970.3,0.98427801]
[1772813714786,0.001,1970.8,1970.3,2.2530895]
[1772813716090,0.001,1970.8,1970.1,1.26893171]
[1772813716270,0.001,1970.8,1970.2,0.98427801]
[1772813716760,2.40426298,1971.3,1970.5,0.98427801]
[1772813716761,0.001,1971.3,1970.5,0.98427801]
[1772813717089,0.001,1971.3,1970.7,0.98427801]
[1772813718587,0.001,1971.3,1970.6,0.824]
[1772813718588,2.31979229,1971.3,1970.5,0.98427801]
[1772813718798,2.31979229,1971.3,1970.5,2.25296847]
[1772813719183,2.31979229,1971.3,1970.2,0.98427801]
[1772813719383,1.05058966,1971.2,1970.2,2.25314199]
[1772813719686,1.05058966,1971.2,1970.1,7.76071506]
[1772813719687,1.05058966,1971.2,1970.1,1.26893251]
[1772813720192,1.05058966,1971.2,1970.0,1.2690195]
[1772813720386,1.05058966,1971.2,1970.0,2.25329751]
[1772813720780,1.26832732,1971.1,1970.1,0.98427801]
[1772813721510,2.31891698,1971.1,1970.1,0.98427801]
[1772813722903,2.31891698,1971.1,1970.2,1.2689067]
[1772813723812,2.31891698,1971.1,1970.2,2.25318471]
[1772813724286,1.26832732,1971.1,1970.3,0.98427801]
[1772813724617,1.133,1971.2,1970.3,0.98427801]
[1772813724813,2.40126605,1971.2,1970.3,0.98427801]
[1772813725014,2.40126605,1971.2,1970.4,1.26877791]
[1772813725235,2.40126605,1971.2,1970.4,2.25305592]
[1772813725513,2.40226605,1971.2,1970.4,2.25305592]
[1772813725940,1.134,1971.2,1970.4,2.25305592]
[1772813726121,0.001,1971.2,1970.5,0.98427801]
[1772813726285,0.001,1971.3,1970.4,2.09477791]
[1772813726286,0.001,1971.3,1970.6,0.98427801]
[1772813726487,0.001,1971.5,1970.7,0.98427801]
[1772813726791,1.2690755,1971.5,1970.7,0.98427801]
[1772813727006,0.001,1971.5,1970.8,1.26852039]
[1772813727387,0.001,1971.5,1970.7,1.26854938]
[1772813727586,1.05158966,1971.5,1970.6,2.25288203]
[1772813728419,1.05158966,1971.5,1970.4,1.26875238]
[1772813728741,1.05158966,1971.5,1970.3,2.25419659]
[1772813729798,2.31872398,1971.4,1970.3,2.25419659]
[1772813730096,1.05058966,1971.3,1970.3,2.25419659]
[1772813731886,1.26826298,1971.2,1970.3,2.25419659]
[1772813732422,1.26826298,1971.2,1970.4,1.02100374]
[1772813733126,1.26826298,1971.2,1970.3,0.0011]
[1772813733127,0.93879588,1971.0,1970.3,0.0011]
[1772813734215,2.20725191,1970.9,1970.3,0.0011]
[1772813734597,0.93879588,1970.8,1970.3,0.0011]
[1772813735432,0.93879588,1970.5,1969.7,0.0011]
[1772813735733,2.45725576,1970.6,1969.7,0.0011]
[1772813735734,0.93879588,1970.3,1969.7,0.0011]
[1772813736292,0.93879588,1970.1,1969.7,0.0011]
[1772813736812,1.2689067,1970.2,1969.7,0.0011]
[1772813736996,1.2689067,1970.2,1969.8,0.0011]
[1772813737319,3.34262642,1970.4,1969.8,0.0011]
[1772813738013,2.17879588,1970.7,1969.8,1.02210374]
[1772813738323,2.17879588,1970.7,1970.3,0.0011]
[1772813738324,2.50859946,1970.7,1970.3,0.0011]
[1772813738816,1.135,1970.8,1970.4,0.0011]
[1772813739019,0.001,1971.2,1970.4,0.0011]
[1772813739219,1.26928306,1971.2,1970.4,1.02210374]
[1772813739895,1.26926468,1971.2,1970.4,1.02210374]
[1772813740627,0.001,1971.2,1970.5,1.26871352]
[1772813741127,0.001,1971.2,1970.6,0.0011]
[1772813741503,0.001,1971.2,1970.6,1.02210374]
[1772813742324,0.001,1971.2,1970.6,0.0011]
[1772813744110,0.93979588,1971.2,1970.6,0.0011]
[1772813745010,1.26832732,1971.1,1970.6,0.0011]
[1772813745615,1.26930972,1971.2,1970.6,0.0011]
[1772813746933,2.2081056,1971.2,1970.6,0.0011]
[1772813747534,0.93879588,1971.1,1970.3,0.0011]
[1772813747735,0.93879588,1971.1,1970.4,0.0011]
[1772813747960,0.93879588,1971.1,1970.3,0.0011]
[1772813748107,0.93879588,1971.0,1970.1,0.0011]
[1772813748424,0.93879588,1970.8,1970.1,0.0011]
[1772813749111,2.20738064,1970.7,1970.1,0.0011]
[1772813749327,0.93879588,1970.6,1970.1,0.0011]
[1772813750137,0.93879588,1970.6,1970.2,0.0011]
[1772813751044,1.136,1970.5,1970.2,0.0011]
[1772813751244,1.26877791,1970.4,1970.2,0.0011]
[1772813751942,2.20757379,1970.4,1969.9,0.0011]
[1772813752242,0.93879588,1970.3,1969.7,0.0011]
[1772813753447,2.20770258,1970.2,1969.7,0.0011]
[1772813753818,1.2689067,1970.2,1969.7,0.0011]
[1772813755424,0.95726579,1970.8,1969.8,0.99733364]
[1772813755632,1.137,1970.7,1969.8,0.99733364]
[1772813756621,2.09426579,1970.7,1969.8,0.99733364]
[1772813757338,1.137,1970.7,1969.8,0.99733364]
[1772813757646,2.40563464,1970.7,1970.0,0.99733364]
[1772813758732,1.137,1970.7,1970.0,0.99733364]
[1772813758933,1.137,1970.7,1969.7,5.07749981]
[1772813758934,0.95726579,1970.6,1969.7,0.0011]
[1772813759133,0.95726579,1970.6,1969.7,1.27029071]
[1772813759338,0.95726579,1970.6,1969.7,0.0011]
[1772813759648,2.22597931,1970.5,1969.7,0.0011]
[1772813760120,1.26871352,1970.5,1969.7,0.99843364]
[1772813760524,5.07443117,1970.7,1969.7,0.99843364]
[1772813760745,6.21243117,1970.7,1969.7,0.99843364]
[1772813761151,7.16969696,1970.7,1969.7,0.99843364]
[1772813761645,1.26858476,1970.7,1969.9,0.90016668]
[1772813762227,1.26857095,1970.8,1969.9,0.90016668]
[1772813762529,1.138,1971.0,1969.9,0.90016668]
[1772813762729,0.001,1971.2,1970.3,0.90016668]
[1772813762931,0.001,1971.5,1970.4,0.90016668]
[1772813763623,0.001,1971.5,1970.6,0.90016668]
[1772813763863,0.001,1971.5,1970.8,0.90016668]
[1772813765828,0.001,1971.5,1970.5,0.90016668]
[1772813767465,0.001,1971.5,1970.7,0.90016668]
[1772813767669,0.001,1971.5,1970.9,0.90016668]
[1772813768031,1.26781276,1971.9,1971.0,0.90016668]
[1772813770073,1.26781276,1971.9,1971.2,0.90016668]
[1772813770230,0.96496188,1971.8,1970.9,0.90016668]
[1772813770641,1.26781276,1971.9,1970.9,0.90016668]
[1772813770942,0.001,1972.7,1971.4,0.90016668]
[1772813771254,0.001,1972.7,1971.7,0.90016668]
[1772813771456,0.001,1972.7,1971.9,0.90016668]
[1772813771656,1.26831121,1972.7,1971.9,0.90016668]
[1772813772235,0.001,1972.7,1972.1,0.90016668]
[1772813773748,1.61061427,1973.1,1972.1,0.90016668]
[1772813774074,0.34352545,1973.1,1972.2,0.90016668]
[1772813774285,0.34352545,1973.1,1972.4,0.90016668]
[1772813774286,1.61057319,1973.1,1972.4,0.90016668]
[1772813774637,2.57553507,1973.1,1972.1,1.26763358]
[1772813775067,2.57553507,1973.1,1972.1,2.16780026]
[1772813775500,0.001,1972.6,1972.1,2.16780026]
[1772813775970,0.001,1972.6,1972.2,0.90016668]
[1772813776138,0.001,1972.6,1972.4,0.90016668]
[1772813776340,0.001,1973.2,1972.3,2.09155564]
[1772813776679,1.26758861,1973.9,1972.6,1.04965167]
[1772813776993,1.26758861,1973.9,1972.6,0.90016668]
[1772813777138,0.001,1973.9,1972.8,0.90016668]
[1772813777339,1.26753226,1973.9,1972.8,0.90016668]
[1772813777576,2.23249414,1973.9,1972.8,0.90016668]
[1772813777756,2.23249414,1973.9,1972.8,1.0344459]
[1772813778263,1.26753226,1973.9,1973.0,1.26710593]
[1772813778441,1.26752935,1973.9,1973.1,1.10002163]
[1772813778636,0.001,1973.9,1973.1,1.10002163]
[1772813778839,1.2675315,1973.9,1973.1,1.10002163]
[1772813779305,2.23249338,1973.9,1973.1,0.19985495]
[1772813780090,1.26754917,1973.9,1973.1,1.10002163]
[1772813780396,0.001,1973.9,1973.1,1.4668796]
[1772813780690,0.001,1973.9,1973.1,1.4668611]
[1772813780892,0.001,1973.9,1973.2,0.90016668]
[1772813781385,1.26631607,1974.3,1973.2,1.72416668]
[1772813781553,1.26631607,1974.3,1973.1,1.4668611]
[1772813781554,1.26631607,1974.3,1973.3,0.90016668]
[1772813782196,1.26631607,1974.3,1973.1,2.2908611]
[1772813782197,1.26639987,1974.1,1973.1,0.19985495]
[1772813782489,0.96496188,1974.0,1973.1,0.19985495]
[1772813782691,0.96496188,1973.7,1972.8,1.26722838]
[1772813783052,2.49453932,1973.8,1972.8,1.26722838]
[1772813783277,2.49453932,1973.8,1972.8,2.16739506]
[1772813783553,3.4595012,1973.8,1972.8,0.90016668]
[1772813783765,0.96496188,1973.7,1972.5,2.16754515]
[1772813784285,0.96496188,1973.7,1972.4,1.26746648]
[1772813784286,0.96496188,1973.5,1972.4,1.26746648]
[1772813784465,0.96496188,1973.5,1972.2,2.16773569]
[1772813784667,0.96496188,1973.5,1972.0,1.26774847]
[1772813785066,0.96496188,1973.2,1971.9,2.32929533]
[1772813785263,2.09696188,1973.1,1971.9,2.32929533]
[1772813785469,2.09696188,1973.1,1972.0,0.90016668]
[1772813785865,0.96496188,1973.0,1971.9,1.42912865]
[1772813786071,0.96496188,1973.0,1971.9,2.32929533]
[1772813786391,0.96496188,1972.8,1971.9,0.16134257]
[1772813786698,0.96496188,1972.6,1971.2,2.16841544]
[1772813786857,0.96496188,1972.6,1971.0,1.26833487]
[1772813787259,0.96496188,1972.6,1971.1,0.90016668]
[1772813788013,0.96496188,1972.6,1971.3,0.0011]
[1772813788496,0.96496188,1972.4,1971.3,0.0011]
[1772813788689,0.96496188,1972.2,1971.3,0.0011]
[1772813789472,1.132,1972.3,1971.3,0.0011]
[1772813789473,0.96496188,1972.0,1971.3,0.0011]
[1772813790483,1.26781276,1971.9,1971.3,0.0011]
[1772813791187,2.23277464,1971.9,1971.3,0.0011]
[1772813791389,0.96496188,1971.7,1971.0,0.0011]
[1772813791570,0.96496188,1971.5,1970.8,0.14519721]
[1772813792489,1.26813432,1971.4,1970.8,0.14519721]
[1772813792679,1.26813432,1971.4,1970.8,1.41370279]
[1772813793076,1.26813432,1971.4,1970.8,0.14519721]
[1772813793276,1.26813432,1971.4,1970.7,0.0011]
[1772813793913,0.9437458,1971.3,1970.5,0.0011]
[1772813794276,0.9437458,1971.3,1970.5,1.26978373]
[1772813794808,1.26826298,1971.2,1970.5,0.0011]
[1772813795307,1.26826298,1971.2,1970.4,0.0011]
[1772813795308,0.9437458,1971.0,1970.4,0.0011]
[1772813795508,0.9437458,1970.9,1969.8,1.27022493]
[1772813795675,0.9437458,1970.9,1969.8,0.0011]
[1772813795879,1.133,1971.0,1969.8,0.0011]
[1772813795880,0.9437458,1970.7,1969.8,0.0011]
[1772813796686,0.9437458,1970.5,1969.8,0.0011]
[1772813796882,2.0767458,1970.4,1969.8,0.0011]
[1772813797102,2.21239494,1970.6,1969.8,0.0011]
[1772813798614,1.26877791,1970.4,1969.8,0.0011]
[1772813799916,0.9437458,1970.3,1969.5,0.0011]
[1772813800811,1.2689067,1970.2,1969.4,0.0011]
[1772813801012,0.9437458,1970.0,1969.4,0.0011]
[1772813801215,1.134,1970.1,1969.8,0.0011]
[1772813802688,0.9437458,1969.9,1969.6,0.0011]
[1772813802897,0.9437458,1969.9,1969.4,0.0011]
[1772813803325,1.26903553,1970.0,1969.4,0.0011]
[1772813804036,2.21278133,1970.0,1969.4,0.0011]
[1772813804594,2.21278133,1970.0,1969.2,0.0011]
[1772813804595,2.45545649,1969.8,1969.2,0.0011]
[1772813804818,0.9437458,1969.4,1968.7,0.0011]
[1772813805104,2.0787458,1969.3,1968.7,0.0011]
[1772813805727,0.9437458,1969.2,1968.7,0.0011]
[1772813806026,0.9437458,1969.2,1968.4,0.0011]
[1772813806928,1.26961556,1969.1,1968.4,0.0011]
[1772813807346,1.136,1969.3,1968.4,0.0011]
[1772813807698,2.0797458,1969.3,1968.4,0.0011]
[1772813808818,1.26955108,1969.2,1968.4,0.0011]
[1772813809021,2.21329688,1969.2,1968.4,0.0011]
[1772813809808,2.40553418,1969.3,1968.5,0.91810154]
[1772813809999,1.136,1969.3,1968.5,0.91810154]
[1772813810214,2.40549944,1969.3,1968.5,0.91810154]
[1772813810436,1.136,1969.3,1968.5,0.91810154]
[1772813810805,1.136,1969.3,1968.7,0.91700154]
[1772813811106,2.50927693,1969.7,1968.7,0.91700154]
[1772813812143,1.24,1969.7,1968.7,0.91700154]
[1772813812641,1.24,1969.7,1968.6,1.26993802]
[1772813812642,2.40595719,1970.2,1968.8,0.91700154]
[1772813812848,0.9437458,1970.1,1968.9,2.18674606]
[1772813813135,0.001,1969.1,1968.9,2.18674606]
[1772813813314,0.9437458,1970.1,1968.9,2.18674606]
[1772813813704,2.40592499,1970.2,1969.0,0.91700154]
[1772813813910,1.137,1970.2,1969.0,0.91700154]
[1772813814426,2.40595037,1970.2,1969.1,0.91700154]
[1772813814807,1.26903553,1970.0,1969.2,1.26955108]
[1772813815211,2.21276778,1970.1,1969.2,1.26955108]
[1772813815411,0.9437458,1970.1,1969.2,1.26955108]
[1772813815608,2.21273884,1970.1,1969.2,1.26955108]
[1772813815825,0.85230506,1970.0,1968.9,1.26974452]
[1772813816820,1.26916438,1969.8,1968.9,1.26974452]
[1772813817020,2.12146944,1969.8,1968.9,1.26974452]
[1772813817348,0.85230506,1969.7,1968.9,1.26974452]
[1772813817649,1.139,1969.6,1968.7,5.07942133]
[1772813818158,0.85230506,1969.5,1968.7,5.07942133]
[1772813819132,1.26942215,1969.4,1968.6,1.27103802]
[1772813820145,2.40834322,1969.6,1968.6,2.1168232]
[1772813820340,2.40834322,1969.6,1968.7,0.84578518]
[1772813820570,1.139,1969.6,1968.7,0.84578518]
[1772813820719,2.40830121,1969.6,1968.7,0.84578518]
[1772813820918,0.85230506,1969.5,1968.6,0.0011]
[1772813821131,0.85230506,1969.3,1968.6,0.0011]
[1772813821361,1.139,1969.6,1968.6,0.84688518]
[1772813821527,2.40830254,1969.6,1968.6,0.84688518]
[1772813821719,2.40829352,1969.6,1968.7,0.87980847]
[1772813823251,5.07639439,1970.1,1968.7,0.87980847]
[1772813823252,1.26897111,1970.1,1968.9,0.87980847]
[1772813823545,2.40897111,1970.1,1968.9,0.87980847]
[1772813824043,3.25389445,1970.5,1968.9,0.87980847]
[1772813824731,5.07485409,1970.6,1968.8,1.26980902]
[1772813824732,1.26865728,1970.6,1969.1,0.87980847]
[1772813824944,0.84513119,1970.8,1969.4,0.87980847]
[1772813825130,5.07384224,1970.9,1969.5,1.2693577]
[1772813825334,5.91897343,1970.9,1969.6,0.87980847]
[1772813825527,5.07384224,1970.9,1969.6,0.87980847]
[1772813825943,2.11358722,1970.9,1969.6,0.87980847]
[1772813826351,6.21366054,1971.0,1969.7,0.87980847]
[1772813826352,2.4084383,1971.0,1969.7,0.87980847]
[1772813827433,2.4084383,1971.0,1969.9,0.87980847]
[1772813827730,1.26930793,1971.2,1969.9,0.87980847]
[1772813827919,1.26926782,1971.2,1969.9,0.87980847]
[1772813828123,0.001,1971.2,1969.9,0.87980847]
[1772813828322,1.26929986,1971.2,1969.9,0.87980847]
[1772813828836,0.001,1971.2,1970.3,0.87980847]
[1772813829546,2.11306748,1971.8,1970.5,0.87980847]
[1772813829746,0.84513119,1971.7,1970.4,1.26877791]
[1772813830123,1.26793629,1971.8,1970.4,1.26877791]
[1772813830124,0.84513119,1971.5,1970.4,1.26877791]
[1772813830453,0.84513119,1971.5,1970.3,1.26879294]
[1772813830854,0.84513119,1971.2,1969.6,0.87980847]
[1772813831058,0.84513119,1970.6,1969.4,1.26942215]
[1772813831277,0.84513119,1970.6,1969.0,0.87980847]
[1772813831429,0.84513119,1970.6,1969.0,2.14945976]
[1772813831430,0.84513119,1970.3,1969.0,2.14945976]
[1772813831627,0.84513119,1970.1,1969.0,1.26965129]
[1772813832663,0.84513119,1970.1,1969.0,2.14945976]
[1772813833439,0.84513119,1969.9,1969.0,1.26965129]
[1772813835341,0.84513119,1969.9,1968.8,1.26980902]
[1772813835541,2.11429557,1969.8,1968.8,1.26980902]
[1772813836040,0.84513119,1969.7,1968.8,1.26980902]